bitfinex/quotes_SOLUSD_20240925
["timestamp","ask_amount","ask_price","bid_price","bid_amount"]
[1727275188337,23.776884,151.71,151.65,0.52568028]
[1727275188507,6.592,151.7,151.65,6.5941]
[1727275192118,16.4169,151.72,151.68,6.5925]
[1727275192514,6.4429,151.74,151.7,18.6175412]
[1727275192820,13.0332,151.74,151.7,18.6175412]
[1727275194434,6.5903,151.74,151.7,18.6175412]
[1727275194641,20.0,151.75,151.71,23.0698]
[1727275195240,26.5898,151.75,151.71,23.0698]
[1727275195915,15.9951442,151.76,151.71,28.5045412]
[1727275196121,15.9951442,151.76,151.73,6.5904]
[1727275196530,0.3181442,151.76,151.74,18.6158412]
[1727275196850,0.3181442,151.76,151.73,23.0667]
[1727275197314,0.3181442,151.76,151.73,16.4761]
[1727275197518,6.9078442,151.76,151.71,6.5914]
[1727275197930,6.9078442,151.76,151.7,28.5051412]
[1727275198131,6.9078442,151.76,151.72,6.591]
[1727275200243,6.9078442,151.76,151.71,18.6170412]
[1727275200427,6.5906,151.73,151.69,12.0257412]
[1727275200619,1.64777167,151.72,151.68,6.5927]
[1727275200941,6.5912,151.72,151.67,23.0755]
[1727275201720,16.3555,151.74,151.67,16.4824]
[1727275202041,6.5916,151.71,151.67,23.0755]
[1727275202240,16.3555,151.74,151.67,23.0755]
[1727275202241,6.5912,151.72,151.67,23.0755]
[1727275202441,16.3555,151.74,151.69,16.4805]
[1727275202947,16.3555,151.74,151.7,0.52464388]
[1727275203127,16.3555,151.74,151.71,6.5913]
[1727275204246,16.3555,151.74,151.69,16.4805]
[1727275204423,16.3555,151.74,151.7,6.5918]
[1727275204749,16.3555,151.74,151.69,16.4805]
[1727275205048,16.3555,151.74,151.71,6.5914]
[1727275205247,6.9075442,151.76,151.71,6.5914]
[1727275205449,0.3181442,151.76,151.69,16.4805]
[1727275205743,6.5901,151.75,151.69,16.4805]
[1727275205921,6.9075442,151.76,151.71,6.5912]
[1727275208851,6.59,151.75,151.7,6.5919]
[1727275209149,0.3181442,151.76,151.7,6.5919]
[1727275209348,20.3181442,151.76,151.69,17.00502409]
[1727275209551,6.5907,151.73,151.69,23.0728]
[1727275209731,6.5903,151.74,151.69,23.0728]
[1727275210424,6.5903,151.74,151.69,16.4805]
[1727275210727,6.5903,151.74,151.7,6.5918]
[1727275212340,20.3181442,151.76,151.69,16.4805]
[1727275212549,6.5911,151.72,151.69,16.4805]
[1727275212737,6.5923,151.7,151.66,16.4834]
[1727275212946,1.64816228,151.69,151.65,6.5939]
[1727275213328,1.64816228,151.69,151.66,6.5936]
[1727275213548,6.592,151.7,151.66,6.5936]
[1727275213743,21.9648,151.72,151.66,6.5936]
[1727275213937,6.5915,151.71,151.66,6.5936]
[1727275214137,15.5098,151.72,151.67,0.52549789]
[1727275214346,6.5901,151.75,151.7,6.5916]
[1727275214730,21.5953442,151.76,151.72,6.5909]
[1727275214949,15.4507442,151.76,151.73,6.5905]
[1727275215550,15.4507442,151.76,151.71,16.4782]
[1727275215756,22.0402442,151.76,151.71,23.0694]
[1727275217057,15.4507442,151.76,151.72,0.5241943]
[1727275217247,0.3181442,151.76,151.72,0.5241943]
[1727275217446,0.3181442,151.76,151.74,6.59]
[1727275217642,0.3181442,151.76,151.73,6.5905]
[1727275217832,0.3181442,151.76,151.72,6.591]
[1727275218433,6.9074442,151.76,151.72,6.591]
[1727275218628,0.3181442,151.76,151.73,6.5905]
[1727275222059,0.3181442,151.76,151.74,6.59]
[1727275222239,0.3181442,151.76,151.75,6.5897]
[1727275224361,0.3181442,151.76,151.74,16.4751]
[1727275224657,0.3181442,151.76,151.74,23.0651]
[1727275225033,0.3181442,151.76,151.72,12.02986406]
[1727275225034,6.5906,151.73,151.68,6.5924]
[1727275225235,1.64803333,151.72,151.67,16.4821]
[1727275225469,6.5915,151.71,151.67,16.4821]
[1727275225759,1.64818582,151.7,151.67,16.4821]
[1727275226141,6.5924,151.69,151.64,16.4857]
[1727275226337,1.64838423,151.68,151.62,12.02986406]
[1727275226531,6.5933,151.67,151.62,6.5953]
[1727275226937,16.4783,151.72,151.63,6.5949]
[1727275226938,6.5928,151.68,151.63,6.5949]
[1727275227159,6.5928,151.68,151.64,6.5944]
[1727275227465,6.5924,151.69,151.64,6.5944]
[1727275227838,26.5919,151.7,151.65,6.5941]
[1727275228242,20.0,151.7,151.62,18.82710568]
[1727275228460,20.0,151.71,151.66,6.5933]
[1727275228641,20.0,151.71,151.65,23.0786]
[1727275228844,6.592,151.7,151.65,23.0786]
[1727275229144,6.5914,151.72,151.66,0.52586273]
[1727275229350,6.5915,151.71,151.65,16.4846]
[1727275229544,6.5915,151.71,151.66,6.5935]
[1727275232459,20.0,151.73,151.65,16.4846]
[1727275232779,6.5924,151.69,151.65,16.4846]
[1727275233267,23.776884,151.71,151.63,6.5948]
[1727275233268,6.5928,151.68,151.63,6.5948]
[1727275233444,23.776884,151.69,151.62,16.4879]
[1727275233638,20.0,151.7,151.62,16.4879]
[1727275233838,6.5933,151.67,151.63,6.5949]
[1727275234971,6.5928,151.68,151.63,6.5949]
[1727275236560,6.5924,151.69,151.64,6.5942]
[1727275237349,20.0,151.71,151.6,18.82710568]
[1727275237555,20.0,151.7,151.66,6.5933]
[1727275237971,26.5919,151.7,151.66,6.5933]
[1727275238273,20.0,151.7,151.66,6.5933]
[1727275238659,20.0,151.71,151.67,6.593]
[1727275239564,6.5915,151.71,151.67,6.593]
[1727275239944,20.0,151.71,151.63,22.7796]
[1727275240141,6.5924,151.69,151.65,6.594]
[1727275243573,1.64846891,151.68,151.65,6.594]
[1727275245249,6.5924,151.69,151.65,6.594]
[1727275245868,6.5921,151.7,151.65,6.594]
[1727275247165,6.591,151.72,151.66,0.5257587]
[1727275247366,20.0,151.71,151.66,0.5257587]
[1727275247557,20.0,151.71,151.68,6.5928]
[1727275248366,20.0,151.71,151.67,23.0756]
[1727275249461,20.0,151.71,151.69,6.592]
[1727275249661,20.0,151.73,151.68,6.5926]
[1727275249877,20.0,151.71,151.68,6.5926]
[1727275250174,20.0,151.71,151.67,23.0756]
[1727275253754,6.5918,151.71,151.65,7.1191541]
[1727275254077,20.0,151.71,151.67,6.5932]
[1727275254375,6.5924,151.69,151.64,23.0802]
[1727275254556,26.5915,151.71,151.66,6.5933]
[1727275254874,20.0,151.72,151.67,6.5929]
[1727275255179,6.5915,151.71,151.67,6.5929]
[1727275255473,6.5915,151.71,151.66,16.4837]
[1727275255678,8.2402473,151.7,151.66,16.4837]
[1727275255977,8.23986055,151.71,151.66,23.0773]
[1727275256477,6.5919,151.7,151.66,16.4837]
[1727275256978,6.5919,151.7,151.65,6.5938]
[1727275259381,6.5919,151.7,151.63,51.30899313]
[1727275259552,21.64829433,151.72,151.66,6.5936]
[1727275259753,23.776884,151.71,151.65,16.4849]
[1727275259977,6.5928,151.68,151.64,6.5942]
[1727275260162,1.64851545,151.67,151.63,6.5948]
[1727275260375,1.64851545,151.67,151.62,23.0832]
[1727275260691,6.5937,151.66,151.62,16.4879]
[1727275260861,1.64877815,151.65,151.62,16.4879]
[1727275261185,28.24297815,151.65,151.6,6.5961]
[1727275261389,20.0,151.65,151.61,6.5958]
[1727275262187,20.0,151.67,151.63,6.5949]
[1727275262680,20.0,151.67,151.62,0.52678756]
[1727275262681,21.64865294,151.67,151.62,12.04498418]
[1727275262985,26.5932,151.67,151.62,6.595]
[1727275263183,1.64865836,151.66,151.61,16.4892]
[1727275263364,6.5945,151.64,151.59,29.4974545]
[1727275263972,1.64898535,151.63,151.59,6.8426545]
[1727275264175,6.5945,151.64,151.59,6.8426545]
[1727275265188,6.5942,151.65,151.6,6.5962]
[1727275265595,20.0,151.67,151.63,6.5949]
[1727275265762,1.64871756,151.66,151.6,16.4902]
[1727275266164,20.0,151.67,151.6,16.4902]
[1727275267086,6.592,151.7,151.65,6.5939]
[1727275267272,22.8368,151.72,151.66,0.52586273]
[1727275267483,16.4326,151.72,151.68,6.5923]
[1727275268160,23.1960442,151.76,151.68,16.4813]
[1727275268161,6.7223442,151.76,151.68,16.4813]
[1727275268361,6.5909,151.73,151.68,23.074]
[1727275269270,6.5898,151.75,151.7,6.5918]
[1727275269464,6.5907,151.73,151.68,23.0741]
[1727275270165,6.5914,151.72,151.67,18.63818418]
[1727275271170,1.64813267,151.75,151.67,18.63818418]
[1727275271171,23.776884,151.74,151.67,12.04498418]
[1727275271483,6.5907,151.73,151.68,6.5928]
[1727275274099,6.5916,151.71,151.67,16.4825]
[1727275274303,1.64826596,151.7,151.67,16.4825]
[1727275275194,8.24016596,151.7,151.65,18.63878418]
[1727275275374,6.5919,151.7,151.65,18.63878418]
[1727275275574,1.64844211,151.69,151.64,16.4858]
[1727275275804,6.5931,151.68,151.64,23.0803]
[1727275276006,20.0,151.71,151.64,23.0803]
[1727275276187,20.0,151.68,151.64,23.0803]
[1727275276802,23.776884,151.66,151.61,16.4893]
[1727275277003,21.64896672,151.65,151.61,16.4893]
[1727275277205,6.5947,151.64,151.59,6.8426545]
[1727275277408,23.776884,151.66,151.59,0.2460545]
[1727275277580,20.0,151.65,151.59,12.29103868]
[1727275277924,20.0,151.63,151.59,18.88763868]
[1727275278313,1.64916567,151.62,151.59,0.2460545]
[1727275278608,8.24456567,151.62,151.59,0.2460545]
[1727275278802,43.776884,151.63,151.59,6.8426545]
[1727275279004,26.5941,151.65,151.6,6.5961]
[1727275279703,1.64904548,151.64,151.59,0.2460545]
[1727275279911,20.0,151.63,151.59,6.8427545]
[1727275280517,1.64912604,151.62,151.59,0.2460545]
[1727275280892,6.595,151.63,151.59,0.2460545]
[1727275281085,23.776884,151.65,151.59,0.2460545]
[1727275281286,6.5959,151.61,151.59,0.2460545]
[1727275281600,1.64938035,151.6,151.59,0.2460545]
[1727275282799,1.56852881,151.6,151.59,0.2460545]
[1727275283117,6.5955,151.62,151.59,0.2460545]
[1727275285193,20.0,151.62,151.59,0.2460545]
[1727275285431,20.0,151.62,151.59,6.8426545]
[1727275285713,6.90400247,151.68,151.6,16.4905]
[1727275285886,20.0,151.65,151.61,6.5954]
[1727275286087,1.64886891,151.65,151.62,6.595]
[1727275286291,6.5932,151.67,151.62,23.0833]
[1727275286609,22.82563586,151.7,151.62,16.488]
[1727275286815,6.5925,151.69,151.64,6.5942]
[1727275287299,1.64852966,151.68,151.64,6.5942]
[1727275287901,8.24192657,151.67,151.63,6.5947]
[1727275288111,6.5929,151.68,151.63,6.5947]
[1727275290932,20.0,151.69,151.64,16.4856]
[1727275291140,20.0,151.69,151.65,6.5941]
[1727275291438,21.64839817,151.69,151.65,6.5941]
[1727275291735,20.0,151.72,151.67,6.5929]
[1727275291907,20.0,151.71,151.67,6.5929]
[1727275292107,6.5907,151.73,151.68,6.5927]
[1727275292336,6.5911,151.72,151.67,6.5931]
[1727275294746,1.64817769,151.71,151.67,6.5931]
[1727275295633,26.5907,151.73,151.68,6.5928]
[1727275297423,1.64804356,151.72,151.67,6.1215]
[1727275297624,8.23944356,151.72,151.67,12.7146]
[1727275297938,1.64804356,151.72,151.67,12.7146]
[1727275298139,6.5915,151.71,151.67,12.7146]
[1727275298343,1.64817896,151.7,151.67,12.7146]
[1727275300343,1.64817896,151.7,151.67,24.75586019]
[1727275302949,1.64817896,151.7,151.67,18.16276019]
[1727275303326,6.5915,151.71,151.67,18.16276019]
[1727275303641,6.5915,151.71,151.67,24.75596019]
[1727275305037,6.5912,151.72,151.67,24.75596019]
[1727275305534,6.5907,151.73,151.68,6.5926]
[1727275305734,26.5911,151.72,151.68,6.5926]
[1727275306538,20.0,151.73,151.7,12.04126019]
[1727275306738,6.9075442,151.76,151.71,18.63266019]
[1727275307858,6.5898,151.75,151.71,18.63266019]
[1727275308642,0.3181442,151.76,151.71,18.63266019]
[1727275308643,6.9075442,151.76,151.71,6.5914]
[1727275308840,8.23755964,151.75,151.7,35.11256019]
[1727275309860,6.5902,151.74,151.7,35.11256019]
[1727275310060,1.64783608,151.73,151.7,35.11256019]
[1727275310555,1.64783608,151.73,151.7,16.4795]
[1727275311441,6.5902,151.74,151.7,35.11266019]
[1727275311843,6.5899,151.75,151.7,35.11266019]
[1727275312462,0.3181442,151.76,151.7,23.0714]
[1727275312762,8.23811821,151.74,151.7,23.0714]
[1727275313133,8.23811821,151.74,151.7,16.4795]
[1727275313660,1.64788881,151.73,151.67,38.8551]
[1727275313968,6.5915,151.71,151.67,38.8551]
[1727275314266,6.5916,151.71,151.67,57.48956019]
[1727275315567,43.776884,151.74,151.67,57.48956019]
[1727275315749,6.5912,151.72,151.68,6.5927]
[1727275315946,8.23963496,151.71,151.67,57.48946019]
[1727275316564,6.5915,151.71,151.67,50.89636019]
[1727275316745,1.64817771,151.7,151.67,22.3722]
[1727275317061,20.0,151.74,151.64,35.12126019]
[1727275317062,6.5924,151.69,151.64,35.12126019]
[1727275318069,6.592,151.7,151.65,6.594]
[1727275318263,6.592,151.7,151.66,6.5936]
[1727275318447,21.6482466,151.72,151.66,6.5936]
[1727275318651,20.0,151.7,151.66,6.5936]
[1727275318956,28.24025307,151.7,151.66,6.5936]
[1727275319266,28.24025307,151.7,151.65,18.63526019]
[1727275319774,26.592,151.7,151.65,18.63526019]
[1727275319956,1.64826155,151.69,151.65,18.63526019]
[1727275320139,26.592,151.7,151.65,18.63526019]
[1727275320342,8.24081066,151.69,151.64,35.12126019]
[1727275320569,6.5928,151.68,151.64,28.52686019]
[1727275320869,1.64852148,151.67,151.64,28.52686019]
[1727275321055,20.0,151.72,151.64,29.13400018]
[1727275321372,6.5925,151.69,151.65,6.594]
[1727275321573,6.592,151.7,151.65,6.594]
[1727275321867,20.0,151.72,151.67,12.04126019]
[1727275322168,6.5913,151.72,151.68,18.63386019]
[1727275322359,6.5906,151.73,151.69,12.04126019]
[1727275322671,6.9075442,151.76,151.72,6.5909]
[1727275322990,0.3181442,151.76,151.73,12.04126019]
[1727275323869,8.55510944,151.76,151.72,12.04126019]
[1727275324460,8.55510944,151.76,151.71,23.0695]
[1727275325873,6.9074442,151.76,151.71,23.0695]
[1727275326690,0.3181442,151.76,151.71,16.4781]
[1727275326907,0.3181442,151.76,151.73,6.5905]
[1727275327076,0.3181442,151.76,151.75,6.5897]
[1727275327970,0.3181442,151.76,151.75,29.3447]
[1727275329368,0.3181442,151.76,151.75,22.755]
[1727275330979,0.3181442,151.76,151.73,16.4758]
[1727275331685,6.9074442,151.76,151.73,16.4758]
[1727275331996,0.3181442,151.76,151.71,22.3087]
[1727275332290,6.5898,151.75,151.71,22.3087]
[1727275332496,6.5908,151.73,151.69,6.5922]
[1727275333303,1.64802377,151.72,151.68,6.5927]
[1727275333593,6.5915,151.71,151.67,45.2384]
[1727275334387,23.776884,151.74,151.67,45.2384]
[1727275334588,6.5911,151.72,151.67,45.2384]
[1727275334892,8.23849553,151.74,151.7,6.5919]
[1727275335372,6.5904,151.74,151.7,6.5919]
[1727275335698,6.5898,151.75,151.7,6.5919]
[1727275335880,6.5898,151.75,151.71,7.19661448]
[1727275336081,6.5898,151.75,151.71,6.5913]
[1727275337198,1.64771867,151.75,151.69,16.4805]
[1727275337373,23.776884,151.74,151.67,28.7561]
[1727275337581,6.5911,151.72,151.67,28.7561]
[1727275337783,6.5906,151.74,151.69,6.5923]
[1727275338974,6.5911,151.72,151.68,23.0742]
[1727275339197,1.64798671,151.71,151.68,16.4815]
[1727275340293,1.64798671,151.71,151.67,22.1629]
[1727275340491,6.592,151.7,151.65,23.0787]
[1727275340794,30.367184,151.74,151.69,6.5922]
[1727275340990,6.5901,151.75,151.7,6.5919]
[1727275341211,0.3181442,151.76,151.72,6.591]
[1727275341380,0.3181442,151.76,151.71,23.0696]
[1727275341381,26.9075442,151.76,151.71,23.0696]
[1727275341582,20.3181442,151.76,151.71,23.0696]
[1727275341782,6.5898,151.75,151.71,23.0696]
[1727275342286,1.64771303,151.75,151.71,23.0696]
[1727275342680,6.9075442,151.76,151.71,23.0696]
[1727275344299,6.9075442,151.76,151.72,6.591]
[1727275344300,20.3181442,151.76,151.72,6.591]
[1727275344699,26.9075442,151.76,151.71,16.4782]
[1727275345802,8.23781449,151.75,151.71,16.4782]
[1727275346002,6.591,151.73,151.68,6.5924]
[1727275346225,6.5919,151.7,151.66,6.5935]
[1727275347195,1.64831022,151.69,151.65,28.9542]
[1727275347590,6.5919,151.7,151.65,28.9542]
[1727275348485,6.5915,151.71,151.66,6.5933]
[1727275349015,6.5915,151.71,151.65,22.3601]
[1727275349347,6.5911,151.72,151.68,6.5927]
[1727275350021,8.23910358,151.72,151.68,6.5927]
[1727275351227,6.5911,151.72,151.68,6.5927]
[1727275351546,1.64800594,151.71,151.67,6.5931]
[1727275351911,8.23960594,151.71,151.67,6.5931]
[1727275352150,6.5916,151.71,151.67,6.5931]
[1727275353871,17.24867438,151.73,151.63,35.29045936]
[1727275354171,6.5933,151.67,151.63,23.0818]
[1727275354465,1.64856731,151.66,151.63,16.4869]
[1727275354681,6.5943,151.65,151.61,6.5958]
[1727275354848,16.4805,151.7,151.62,6.5953]
[1727275355045,6.5928,151.68,151.63,6.5946]
[1727275355450,20.0,151.72,151.64,16.4858]
[1727275355650,6.5924,151.69,151.64,16.4858]
[1727275355868,1.64843927,151.68,151.64,16.4858]
[1727275356079,23.776884,151.71,151.64,16.4858]
[1727275356282,20.0,151.72,151.66,6.5933]
[1727275356753,20.0,151.72,151.68,16.4815]
[1727275356943,6.5901,151.75,151.7,6.5918]
[1727275357139,8.23801877,151.74,151.7,6.5918]
[1727275357573,1.64781877,151.74,151.7,6.5918]
[1727275357739,6.5898,151.75,151.7,6.5918]
[1727275358175,1.64776367,151.74,151.7,6.5918]
[1727275358551,8.23796367,151.74,151.7,6.5918]
[1727275358958,6.5898,151.75,151.7,6.5918]
[1727275359151,26.9075442,151.76,151.72,6.5909]
[1727275359358,20.3181442,151.76,151.72,6.5909]
[1727275359554,26.9074442,151.76,151.72,6.5909]
[1727275360264,0.3181442,151.76,151.73,0.60490358]
[1727275360564,0.3181442,151.76,151.74,6.5901]
[1727275360756,0.3181442,151.76,151.72,16.477]
[1727275360955,0.3181442,151.76,151.73,6.5905]
[1727275361545,0.3181442,151.76,151.72,16.477]
[1727275361746,0.3181442,151.76,151.74,6.59]
[1727275363372,0.3181442,151.76,151.72,16.477]
[1727275363550,0.3181442,151.76,151.74,6.59]
[1727275365273,0.3181442,151.76,151.73,6.5906]
[1727275365781,0.3181442,151.76,151.74,6.59]
[1727275367978,0.3181442,151.76,151.72,16.477]
[1727275368190,0.3181442,151.76,151.73,6.5906]
[1727275368389,0.3181442,151.76,151.74,6.59]
[1727275371587,0.3181442,151.76,151.75,6.5897]
[1727275372696,0.3181442,151.76,151.75,25.39325936]
[1727275375369,0.3181442,151.76,151.75,6.5897]
[1727275375901,0.3181442,151.76,151.75,25.99722656]
[1727275376086,0.2460545,151.8,151.79,6.588]
[1727275376265,0.2460545,151.8,151.79,25.39155936]
[1727275376465,0.2460545,151.8,151.78,23.0591]
[1727275377669,0.2460545,151.8,151.79,6.588]
[1727275378104,0.2460545,151.8,151.78,23.0591]
[1727275378301,0.2460545,151.8,151.78,23.66236376]
[1727275378599,0.2460545,151.8,151.78,23.0591]
[1727275379193,0.2460545,151.8,151.79,6.588]
[1727275379402,0.2460545,151.8,151.79,25.39155936]
[1727275380877,0.2460545,151.8,151.78,16.4708]
[1727275381207,0.2460545,151.8,151.78,23.0592]
[1727275381700,0.2460545,151.8,151.77,25.39235936]
[1727275382392,0.2460545,151.8,151.76,6.5892]
[1727275382699,0.2460545,151.8,151.77,6.5888]
[1727275383581,0.2460545,151.8,151.75,57.27775936]
[1727275383782,6.8336545,151.8,151.75,57.27775936]
[1727275383997,1.64713792,151.79,151.75,16.4739]
[1727275384200,8.23513792,151.79,151.75,23.0635]
[1727275384385,6.588,151.79,151.75,23.0635]
[1727275384704,8.23574643,151.78,151.75,16.4739]
[1727275384897,6.5885,151.78,151.75,16.4739]
[1727275385073,1.64737691,151.77,151.73,25.39415936]
[1727275385582,6.589,151.77,151.72,23.068]
[1727275385890,8.2360774,151.78,151.74,6.5901]
[1727275388977,6.5889,151.77,151.73,6.5905]
[1727275389178,1.64751658,151.76,151.73,6.5905]
[1727275389379,6.5889,151.77,151.72,23.0678]
[1727275390178,1.64757603,151.76,151.69,35.28375936]
[1727275390392,6.5905,151.74,151.69,23.0724]
[1727275390605,1.64780388,151.73,151.68,12.03722206]
[1727275390902,1.64780388,151.73,151.66,31.5599]
[1727275390903,6.592,151.7,151.66,16.4835]
[1727275391102,6.5916,151.71,151.67,6.5932]
[1727275391402,6.5916,151.71,151.67,18.63042206]
[1727275392404,6.5916,151.71,151.67,6.5932]
[1727275392607,6.5916,151.71,151.66,23.0771]
[1727275393688,6.5916,151.71,151.66,16.4835]
[1727275393902,23.776884,151.72,151.68,6.5924]
[1727275394601,15.7294,151.73,151.7,6.5917]
[1727275394781,15.7294,151.73,151.68,16.4815]
[1727275394983,36.5614,151.77,151.69,18.81408999]
[1727275395396,6.5902,151.74,151.69,25.40628999]
[1727275395580,8.23859086,151.73,151.69,25.40628999]
[1727275395779,6.5907,151.73,151.69,25.40628999]
[1727275396091,6.5898,151.75,151.71,6.5915]
[1727275397002,6.5898,151.75,151.7,6.5918]
[1727275397380,8.23800449,151.74,151.7,6.5918]
[1727275398297,1.64784806,151.73,151.7,6.5918]
[1727275398609,6.5902,151.74,151.7,6.5918]
[1727275404520,43.776884,151.76,151.67,18.81408999]
[1727275404807,6.592,151.7,151.65,23.0791]
[1727275404990,1.64824667,151.69,151.65,23.0791]
[1727275405703,6.5929,151.68,151.64,6.8404545]
[1727275405992,16.1972,151.71,151.64,0.2460545]
[1727275406197,6.592,151.7,151.65,6.5937]
[1727275406408,22.7887,151.71,151.66,6.5933]
[1727275406598,16.1972,151.71,151.67,6.593]
[1727275406801,6.5907,151.73,151.68,6.5924]
[1727275407189,6.5907,151.73,151.69,6.5923]
[1727275407411,1.64791071,151.72,151.66,16.4837]
[1727275407609,6.5917,151.71,151.66,23.077]
[1727275407814,1.64819019,151.7,151.66,23.077]
[1727275408221,6.5917,151.71,151.67,6.5931]
[1727275408429,6.5912,151.72,151.66,16.4837]
[1727275409218,8.23869568,151.73,151.68,6.5928]
[1727275409420,8.23869568,151.73,151.64,0.2460545]
[1727275409421,1.64799568,151.73,151.67,18.81408999]
[1727275409625,26.5902,151.74,151.69,6.592]
[1727275409920,6.5907,151.73,151.69,6.592]
[1727275410146,16.0706,151.75,151.68,16.4815]
[1727275410297,22.6607,151.75,151.71,6.5914]
[1727275410701,22.6607,151.75,151.7,6.5918]
[1727275410907,8.23834117,151.74,151.69,18.81408999]
[1727275411223,6.5907,151.73,151.68,23.0739]
[1727275411423,6.5907,151.73,151.69,6.5922]
[1727275411598,8.23854336,151.73,151.69,6.5922]
[1727275412311,6.5907,151.73,151.69,6.5922]
[1727275413416,6.5902,151.74,151.69,6.5922]
[1727275413715,1.64791595,151.73,151.68,16.4815]
[1727275413905,6.5922,151.7,151.65,23.0789]
[1727275414097,1.64824432,151.69,151.65,23.0789]
[1727275414528,1.64824432,151.69,151.65,35.12275344]
[1727275415538,8.24074432,151.69,151.65,16.4849]
[1727275415832,8.2412934,151.68,151.64,6.8405545]
[1727275416003,8.24169229,151.67,151.64,0.2460545]
[1727275416328,21.64849229,151.71,151.64,0.2460545]
[1727275416501,6.5929,151.68,151.64,0.2460545]
[1727275416849,30.369184,151.7,151.65,6.5941]
[1727275417402,6.5924,151.69,151.65,6.5941]
[1727275417603,6.5924,151.69,151.64,0.2460545]
[1727275417813,8.24129005,151.68,151.64,6.8405545]
[1727275418020,6.5928,151.68,151.64,6.8405545]
[1727275418509,6.5924,151.69,151.64,6.8405545]
[1727275418708,6.5919,151.7,151.65,6.5937]
[1727275419229,1.64830555,151.69,151.65,6.5937]
[1727275419434,6.5928,151.68,151.64,23.3259545]
[1727275419614,1.64849175,151.67,151.64,23.3259545]
[1727275420210,23.776884,151.71,151.64,16.7314545]
[1727275420506,30.368484,151.71,151.66,6.5933]
[1727275420715,6.5924,151.69,151.65,6.594]
[1727275420916,8.24135811,151.68,151.64,16.7314545]
[1727275421221,1.64845811,151.68,151.64,0.2460545]
[1727275421433,6.5941,151.65,151.64,0.2460545]
[1727275421641,30.370984,151.65,151.64,0.2460545]
[1727275421941,50.370984,151.65,151.64,0.2460545]
[1727275422311,68.45940739,151.65,151.64,0.2460545]
[1727275422714,66.810084,151.65,151.64,0.2460545]
[1727275424447,68.45939191,151.65,151.64,0.2460545]
[1727275424911,66.810084,151.65,151.64,0.2460545]
[1727275425622,44.68221642,151.65,151.64,0.2460545]
[1727275425820,36.4391,151.65,151.64,0.2460545]
[1727275426022,44.68209808,151.65,151.64,0.2460545]
[1727275426238,43.0332,151.65,151.64,0.2460545]
[1727275427127,66.810084,151.65,151.64,0.2460545]
[1727275428044,60.215984,151.65,151.64,0.2460545]
[1727275429353,43.776884,151.65,151.64,0.2460545]
[1727275429545,20.0,151.65,151.64,0.2460545]
[1727275429845,22.0928,151.69,151.64,6.8404545]
[1727275430350,8.24147276,151.68,151.64,0.2460545]
[1727275430846,6.5933,151.67,151.64,0.2460545]
[1727275431014,1.64874042,151.66,151.64,0.2460545]
[1727275431340,6.5933,151.67,151.64,0.2460545]
[1727275431859,1.64872265,151.66,151.64,0.2460545]
[1727275432041,32.01980654,151.65,151.64,0.2460545]
[1727275432744,23.776884,151.65,151.64,0.2460545]
[1727275433512,30.370984,151.65,151.64,0.2460545]
[1727275436753,6.5937,151.66,151.64,0.2460545]
[1727275436915,6.5934,151.67,151.64,0.2460545]
[1727275438136,8.24242053,151.66,151.64,0.2460545]
[1727275438846,30.370984,151.65,151.64,0.2460545]
[1727275439649,23.776884,151.65,151.64,0.2460545]
[1727275439947,30.370984,151.65,151.64,0.2460545]
[1727275441228,50.370984,151.65,151.64,0.2460545]
[1727275441831,52.02028687,151.65,151.64,0.2460545]
[1727275442946,50.370984,151.65,151.64,0.2460545]
[1727275443328,52.02029489,151.65,151.64,0.2460545]
[1727275443531,52.02029489,151.65,151.59,0.2460545]
[1727275443532,66.183984,151.65,151.59,0.2460545]
[1727275443740,30.373184,151.6,151.59,0.2460545]
[1727275445147,23.776884,151.6,151.59,0.2460545]
[1727275445536,30.373184,151.6,151.59,0.2460545]
[1727275445957,23.776884,151.6,151.59,0.2460545]
[1727275446343,30.373184,151.6,151.59,0.2460545]